Cogmind - Beta 15 @@@ ROGUE MODE // 2025.07.28 @ 01:03:34 Player: Saturn Result: Destroyed by G-47 Trooper with Particle Gun Performance ------------- Evolutions (1) 500 Regions Visited (3) 600 Robots Destroyed (28) 140 Value Destroyed (845) 845 Prototype IDs (1) 20 Alien Tech Used (0) 0 Bonus (0) 0 TOTAL SCORE: 2105 Bonus ------- None Cogmind --------- Core Integrity 0/400 Matter 274/300 Energy 280/280 System Corruption 3% Temperature Warm (109) Movement Treading (160) Location -9/Storage Parts ------- > --- POWER (1) -------- Cooled Ion Engine > --- PROPULSION (4) --- Light Treads Light Treads Light Treads Light Treads > --- UTILITY (2) ------ Large Storage Unit Hardened Light Armor Plating > --- WEAPON (2) ------- Beam Rifle Mini Grenade Launcher > --- INVENTORY (15) --- Cooled Ion Engine Cooled Ion Engine Light Treads Light Treads Heat Sink Small Storage Unit Medium Storage Unit Light Armor Plating Beam Cannon Beam Cannon Particle Cannon Heavy Assault Rifle EMP Blaster Mini Grenade Launcher Peak State ------------ > --- POWER ------------ Cooled Ion Engine > --- PROPULSION ------- Light Treads Light Treads Light Treads Light Treads > --- UTILITY ---------- Large Storage Unit Hardened Light Armor Plating > --- WEAPON ----------- Beam Rifle Heavy Assault Rifle > --- INVENTORY -------- Cooled Ion Engine Cooled Ion Engine Light Treads Aluminum Leg Heat Sink Small Storage Unit Medium Storage Unit Light Armor Plating Light Armor Plating Small Laser Beam Cannon Beam Cannon Particle Cannon Mini Grenade Launcher [Rating: 16] Favorites ----------- Power Light Nuclear Core Engine Cooled Ion Engine Power Core Light Nuclear Core Propulsion Aluminum Leg Treads Light Treads Leg Aluminum Leg Utility Large Storage Unit Storage Large Storage Unit Protection Hardened Light Armor Plating Weapon Small Laser Energy Gun Small Laser Ballistic Gun Heavy Assault Rifle Launcher Mini Grenade Launcher Build | -11 -10 -9 -9 ------- Run | Yrd Mat Mat Sto Slots Evolved 2 | . . 2 . Power . | . . . . Propulsion 2 | . . 2 . Utility . | . . . . Weapon . | . . . . Parts Attached 37 | 6 3 8 20 Power 4 | 1 . 1 2 Engine 3 | 1 . . 2 Core 1 | . . 1 . Reactor . | . . . . Propulsion 16 | 2 1 3 10 Treads 9 | . . . 9 Leg 7 | 2 1 3 1 Wheel . | . . . . Hover . | . . . . Flight . | . . . . Utility 5 | 1 . 2 2 Device . | . . . . Storage 2 | 1 . 1 . Processor . | . . . . Hackware . | . . . . Protection 3 | . . 1 2 Artifact . | . . . . Weapon 12 | 2 2 2 6 Energy Gun 9 | 2 1 2 4 Energy Cannon . | . . . . Ballistic Gun 1 | . . . 1 Ballistic Cannon . | . . . . Launcher 2 | . 1 . 1 Special Weapon . | . . . . Impact Weapon . | . . . . Slashing Weapon . | . . . . Piercing Weapon . | . . . . Special Melee Weapon . | . . . . Unidentified Prototypes 1 | . . . 1 Parts Lost 9 | . 2 3 4 Power . | . . . . Propulsion 6 | . 1 1 4 Utility . | . . . . Weapon 3 | . 1 2 . Highest Loss Streak 3 | . 2 3 3 To Critical Strikes . | . . . . Average Backups 9 | 1 3 5 11 Power 1 | . 1 1 2 Propulsion 2 | . 2 2 2 Utility 2 | . . . 3 Weapon 2 | . . 1 3 Tool/Special . | . . . . Unused Backups 17 | . . . 17 Power 5 | . . . 5 Propulsion 2 | . . . 2 Utility 3 | . . . 3 Weapon 7 | . . . 7 Tool/Special . | . . . . Average Slot Usage (%) 92 | . 83 75 97 Engine 7 | . 14 6 7 Core 3 | . . 4 3 Treads 15 | . . . 21 Leg 22 | . 28 27 20 Storage 11 | . 14 11 11 Protection 8 | . . 5 10 Energy Gun 19 | . 25 15 18 Ballistic Gun 1 | . . . 1 Launcher 1 | . . 4 1 Peak Build Rating 16 | 6 6 12 16 Average Rating 11 | 4 5 8 13 On Entrance 6 | . 6 6 12 Naked Turns . | . . . . Heaviest Build 39 | 14 15 32 39 Greatest Support 80 | 20 20 40 80 Greatest Overweight (x) 2 | 2 1 1 1 Average Overweight (x) . | . . . . Largest Inventory Capacity 15 | 8 8 15 15 Average Capacity 13 | 7 8 9 15 Most Carried 15 | 3 5 7 15 Average Carried 9 | 1 3 5 11 Final Capacity 15 | 8 8 15 15 Final Carried 14 | 3 5 6 14 Class Distribution -------------------- 79% | Scavenger-Mutant 20% | Mutant Dominant Class ---------------- Mutant | -10/Materials Scavenger-Mutant | -9/Materials Scavenger-Mutant | -9/Storage Resources | -11 -10 -9 -9 ----------- Run | Yrd Mat Mat Sto Matter Collected 665 | 213 67 55 330 Remotely . | . . . . Salvage Created 1179 | . 124 171 884 Parts 65 | . 6 8 51 Haulers Intercepted 3 | . . . 3 Recyclers Shooed . | . . . . Parts Field Recycled . | . . . . Retrieved Matter . | . . . . Parts Self-Destructed . | . . . . Prevented . | . . . . Kills | -11 -10 -9 -9 ------- Run | Yrd Mat Mat Sto Combat Hostiles Destroyed 24 | . 4 4 16 Guns 24 | . 4 4 16 Classes Destroyed 6 | . 2 1 3 Hauler 3 | . . . 3 Watcher 1 | . . . 1 Swarmer 5 | . 2 . 3 Grunt 9 | . 2 3 4 Brawler 1 | . . . 1 Sentry 9 | . . 1 8 Best Kill Streak 4 | . 2 4 3 Combat Bots Only 4 | . 2 4 3 Max Kills in Single Turn 1 | . 1 1 1 Gunslinging . | . . . . Exploded . | . . . . Melee . | . . . . Uniques/NPCs Destroyed . | . . . . Combat | -11 -10 -9 -9 -------- Run | Yrd Mat Mat Sto Hostile Shots Fired 206 | . 17 56 133 Missed 43 | . 2 15 26 Hits 163 | . 15 41 107 Projectile 163 | . 15 41 107 Critical Strikes 6 | . 1 2 3 Damage Taken 2038 | . 207 531 1300 Core 428 | . 25 167 236 Absorbed by Shields . | . . . . Regen/Repaired (Parts) 77 | . . . 77 Core Remaining (%) 95 | 100 90 . . Volleys Fired 110 | . 11 25 74 Largest 2 | . 2 2 2 Hottest 105 | . 90 105 105 Shots Fired 178 | . 17 27 134 Gun 178 | . 17 27 134 Cannon . | . . . . Launcher . | . . . . Special . | . . . . Kinetic 11 | . . . 11 Thermal 161 | . 11 27 123 Explosive . | . . . . Electromagnetic 6 | . 6 . . Robot Hit Streak 14 | . 8 12 14 Robot Miss Streak 3 | . 1 3 3 Penetration Max . | . . . . Secondary Targets 2 | . . . 2 Max Gunslinging Chain 1 | . . . 1 Shots Hit Robots 129 | . 12 20 97 Core Hits 53 | . 7 10 36 Critical Kills 1 | . . . 1 Critical Parts Destroyed . | . . . . Critical Strikes 8 | . 1 3 4 Burn 7 | . 1 3 3 Destroy 1 | . . . 1 Melee Attacks . | . . . . Impact . | . . . . Slashing . | . . . . Piercing . | . . . . Sneak Attacks . | . . . . Combat Hostiles . | . . . . Follow-up Attacks . | . . . . Damage Inflicted 1775 | . 167 259 1349 Guns 1745 | . 143 259 1343 Cannons . | . . . . Explosions 24 | . 24 . . Melee . | . . . . Ramming 6 | . . . 6 Kinetic 162 | . . . 162 Thermal 1551 | . 111 259 1181 Explosive . | . . . . Electromagnetic 56 | . 56 . . Impact . | . . . . Slashing . | . . . . Piercing . | . . . . Highest Corruption 3 | . . . 3 Average Corruption 2 | . . . 2 Corruption Purged . | . . . . Corruption Blocked . | . . . . Effects 19 | . . . 19 Message Errors 2 | . . . 2 Matter Fused 3 | . . . 3 Heat Flow Errors 6 | . . . 6 Energy Discharges 3 | . . . 3 Parts Rejected 2 | . . . 2 Parts Fused 1 | . . . 1 Data Loss (minor) 1 | . . . 1 Weapon Failures 1 | . . . 1 Overload Shots . | . . . . Overflow Damage . | . . . . Projectiles . | . . . . Explosions . | . . . . Melee . | . . . . Knockbacks . | . . . . Impact . | . . . . Kinetic . | . . . . Secondary . | . . . . Self-Inflicted Damage 37 | . 37 . . Shots 1 | . 1 . . Rammed . | . . . . Targets Rammed 2 | . . . 2 Kicked 2 | . . . 2 Crushed . | . . . . Highest Temperature 608 | . 191 297 608 Average Temperature 157 | . 89 153 164 Received Heat Transfer 831 | . 81 267 483 Effects 21 | . . . 21 Shutdowns 4 | . . . 4 Energy Bleed 1 | . . . 1 Interference 4 | . . . 4 Matter Decay 2 | . . . 2 Short Circuit 5 | . . . 5 Damage (minor) 1 | . . . 1 Damage (major) 4 | . . . 4 Siege Activations . | . . . . Martial Activations . | . . . . Shielding Activations . | . . . . Robots Disrupted . | . . . . Combat Hostiles . | . . . . Robots Corrupted . | . . . . Combat Hostiles . | . . . . Parts Fried . | . . . . Impact Corruptions . | . . . . Robots Melted . | . . . . Combat Hostiles . | . . . . Parts Melted 14 | . 3 6 5 Heat Transferred 4403 | . 383 950 3070 Parts Sabotaged . | . . . . Parts Stolen . | . . . . Parts Stripped . | . . . . Power Chain Reactions 1 | . 1 . . Alert | -11 -10 -9 -9 ------- Run | Yrd Mat Mat Sto Maximum Alert Level . | . . . . Low Security (%) 100 | 100 100 100 100 Level 1 . | . . . . Level 2 . | . . . . Level 3 . | . . . . Level 4 . | . . . . Level 5 . | . . . . High Security . | . . . . Max Security . | . . . . Peak Influence 100 | . 42 80 100 Initial 3 | . . . 3 Average 38 | . 20 34 45 Influence Increases 711 | . 102 130 479 Destroy 0b10 Robot/C 480 | . 80 80 320 Destroy 0b10 Robot/NC 20 | . . . 20 Destroy Leader 158 | . 20 20 118 Successful Hack 3 | . . . 3 Destroy Structure 5 | . 2 . 3 Partial Spotted 15 | . . . 15 Lose Combat Pursuer 30 | . . 30 . Influence Decreases 675 | . 100 122 453 Entered New Map 9 | . . 2 7 Time Decay 589 | . 80 90 419 Lost Part 77 | . 20 30 27 Squads Dispatched 3 | . . . 3 Investigation 1 | . . . 1 Extermination . | . . . . Reinforcement 2 | . . . 2 Assault . | . . . . Garrison . | . . . . Intercept . | . . . . Searches Triggered . | . . . . Construction Impeded . | . . . . Haulers Reinforced . | . . . . Active Scanning Responses . | . . . . Cargo Convoy Interrupts . | . . . . Stealth | -11 -10 -9 -9 --------- Run | Yrd Mat Mat Sto Distress Signals 2 | . . . 2 Communications Jammed . | . . . . Distress Signals . | . . . . Times Spotted 36 | . 5 9 22 Peak Tracking Total 6 | . 2 6 3 Tactical Retreats 1 | . . 1 . Traps | -11 -10 -9 -9 ------- Run | Yrd Mat Mat Sto Traps Triggered 2 | . . . 2 Indirectly . | . . . . Trap Hack Attempts . | . . . . Triggered . | . . . . Disarmed . | . . . . Reprogrammed . | . . . . Reused . | . . . . Traps Extracted . | . . . . Installed . | . . . . Triggered . | . . . . Machines | -11 -10 -9 -9 ---------- Run | Yrd Mat Mat Sto Machines Disabled . | . . . . Max in Single Turn . | . . . . Machines Repaired . | . . . . Machines Dismantled . | . . . . Machines Sabotaged . | . . . . Overloaded Fab Kills . | . . . . Hacking | -11 -10 -9 -9 --------- Run | Yrd Mat Mat Sto Machines Accessed 3 | . . . 3 Terminals 2 | . . . 2 Fabricators . | . . . . Repair Stations 1 | . . . 1 Recycling Units . | . . . . Scanalyzers . | . . . . Garrison Access . | . . . . Total Hacks 10 | . . . 10 Successful 6 | . . . 6 Failed 4 | . . . 4 Catastrophic . | . . . . Database Lockouts . | . . . . Manual . | . . . . Terminals 6 | . . . 6 Fabricators . | . . . . Repair Stations 4 | . . . 4 Recycling Units . | . . . . Scanalyzers . | . . . . Garrison Access . | . . . . Terminal Hacks 3 | . . . 3 Open Door 1 | . . . 1 Alert Level 1 | . . . 1 Dispatch Records 1 | . . . 1 Fabricator Hacks . | . . . . Repair Station Hacks 3 | . . . 3 Scan Component 2 | . . . 2 Repair 1 | . . . 1 Recycling Unit Hacks . | . . . . Scanalyzer . | . . . . Garrison Access Hacks . | . . . . Unauthorized Hacks . | . . . . Terminals . | . . . . Fabricators . | . . . . Repair Stations . | . . . . Recycling Units . | . . . . Scanalyzers . | . . . . Garrison Access . | . . . . Data Cores Recovered . | . . . . Used . | . . . . Hacking Detections 2 | . . . 2 Full Trace Events 1 | . . . 1 Feedback Events . | . . . . Feedback Blocked . | . . . . Robot Schematics Acquired . | . . . . Robots Built . | . . . . Authchips . | . . . . Time . | . . . . Total Robot Build Rating . | . . . . Part Schematics Acquired . | . . . . Parts Built . | . . . . Authchips . | . . . . Time . | . . . . Total Part Build Rating . | . . . . Parts Repaired 1 | . . . 1 Time 32 | . . . 32 Parts Recycled . | . . . . Recycled Matter . | . . . . Retrieved Matter . | . . . . Retrieved Components . | . . . . Parts Scanalyzed . | . . . . Part Schematics Acquired . | . . . . Parts Damaged . | . . . . Bothacking | -11 -10 -9 -9 ------------ Run | Yrd Mat Mat Sto Used RIF Installer . | . . . . Robots Hacked . | . . . . Non-combat . | . . . . Combat . | . . . . Robot Hacks Applied . | . . . . Relay Couplers Released . | . . . . Fabnet Peak Effective % . | . . . . Robots Rewired . | . . . . Allies Hacked . | . . . . Hacks Repelled . | . . . . Allies | -11 -10 -9 -9 -------- Run | Yrd Mat Mat Sto Total Allies . | . . . . Largest Group . | . . . . Highest-Rated Group . | . . . . Highest-Rated Ally . | . . . . Total Orders . | . . . . Ally Attacks . | . . . . Total Damage . | . . . . Kills . | . . . . Allies Corrupted . | . . . . Allies Melted . | . . . . Intel | -11 -10 -9 -9 ------- Run | Yrd Mat Mat Sto Active Infowar (turns) . | . . . . Robot Analysis Total . | . . . . Derelict Logs Recovered . | . . . . Drone Launches . | . . . . Drone Recoveries . | . . . . Exploration | -11 -10 -9 -9 ------------- Run | Yrd Mat Mat Sto Turns Passed 1589 | 63 180 232 1114 Spaces Moved 772 | 44 118 118 492 Core 5 | 5 . . . Treads 225 | . . . 225 Legs 542 | 39 118 118 267 Wheels . | . . . . Hover . | . . . . Flight . | . . . . Fastest Speed 50 | 50 120 120 120 Average Speed 143 | 117 120 122 156 Slowest Speed 240 | 150 190 190 240 Overloaded Moves . | . . . . Propulsion Burnouts . | . . . . Robots Hopped . | . . . . Potential Cave-ins . | . . . . Cave-ins Triggered . | . . . . Exploration Rate (%) 21 | 3 28 10 46 Regions Visited 3 Branch Regions 1 Pre-discovered Areas . | . . . . Known Exits Taken . | . . . . Unknown Exits Taken 3 | 1 1 1 . Scrap Searched . | . . . . Spaces Dug . | . . . . Terrain Destroyed 2 | . 2 . . Melee . | . . . . Projectile . | . . . . AOE 2 | . 2 . . Terrain Rammed . | . . . . Walls Destroyed . | . . . . Machines Disabled . | . . . . Actions | -11 -10 -9 -9 --------- Run | Yrd Mat Mat Sto Total 1064 | 52 137 175 700 Wait 97 | . 4 22 71 Move 769 | 43 117 117 492 Hop . | . . . . Pick Up 25 | 3 2 1 19 Fast Attach 21 | 6 2 6 7 Attach 4 | . . . 4 Detach . | . . . . Swap 14 | . 1 2 11 Drop 22 | . . 2 20 Fire 110 | . 11 25 74 Melee . | . . . . Ram . | . . . . Kick 2 | . . . 2 Crush . | . . . . Escape Stasis . | . . . . Rewire . | . . . . Trap . | . . . . Miscellaneous . | . . . . Route ------- -11/Scrapyard -10/Materials -9/Materials -9/Storage History --------- Turn | Location | Event 11 | -11/Scrapyard | Discovered new exit (range 16) 64 | -11/Scrapyard | Entered Materials 154 | -10/Materials | Discovered new exit (range 11) 244 | -10/Materials | Entered another Materials area 244 | -9/Materials | Evolved 2 slots: Propulsion x2 262 | -9/Materials | Discovered new exit (range 16) 312 | -9/Materials | Build established: Mutant 382 | -9/Materials | Lost 3 parts (1n2w) 476 | -9/Materials | Entered Storage 648 | -9/Storage | Build established: Scavenger-Mutant 733 | -9/Storage | Core integrity fell below 50% 1106 | -9/Storage | Lost 3 parts (3n) 1275 | -9/Storage | Core integrity fell below 20% 1524 | -9/Storage | Repaired Hrd. Light Armor Plating 1590 | -9/Storage | Destroyed by G-47 Trooper with Particle Gun Last Messages --------------- Time: 26 ALERT: Suspicious activity at Repair Station S001. Dispatching Investigation squad. System corrupted: Matter fused (-6). O-16 Technician: "IFF HANDSHAKE FAILED. SECURING TERMINAL." Connecting with Terminal... >>Alert(Check) Current Alert Level: Low Security >>Enumerate(Squads) Retrieving dispatch records... Found 11 active squads: 5x Security 1x Surveillance 1x Patrol 3x Transport 1x Investigation ALERT: Hostiles spotted, dispatching reinforcements to Terminal S006. Connecting with Door Terminal... Map ----- +----------------------------------------------------+ | ????????????????????????????????? | | ????????????????????????????????? | | ????????????????????????????????? | | ????????????????????????????????? | | ????????????????????????????????? | | ????????????????????????????????? | | ????????????????????????????????? | | ????????????????????????????????? | | ????????????????????????????????? | | ????????????????????????????????? | | ????????????????????????????????? | | ????????????????????????????????? | | ????????????????????????????????? | | ????????????????????????????????# | | ????????????????????????????????# | | ????????????????????????????????# | | ????????????????????????????????# | | ????????????????????????????????# | | ????????????????????????????????? | | ???????###??????????????????????? | | ???????[[[??????????????????????? | | ???????[[[??????????????????????? | | ???????" "??????????????????????? | | ??????? ??????????????????????? | | ???????#g#??????????????????????? | | ???????#@#??????????????????????? | | ???????# #??????????????????????? | | ???????# #??????????????????????? | | ???????# #??????????????????????? | | ???????# #??????????????????????? | | ???????# #??????????????????????? | | ???????# #??????????????????????# | | ???????# #???????????????????#### | | ???????# #???????????????????#] | | ???????# #???????????????????#][ | | ???????# #???????????????????#] | | ???????#o#???????????????????#### | | ?????### #???????###?????######## | | ?????" / #??????##T#####?# =/ | | ?????#T# ######## ] ### ! | | ?????### + [!!=## [ * | | ???????# ######## """ #########+ | | ???????# #??????# R"%#???????# | | ???????# #??????# """!#???????# | | ???????# #??????# =[#???????# | | ???????# #???#######+########### | | ???????+ | | ????????##???#################### | | ????????????????????????????????? | | ????????????????????????????????? | +----------------------------------------------------+ Best States ------------- Heat Dissipation 28 Energy Generation 14 Energy Capacity 280 Matter Stores 300 Matter Capacity 300 Sight Range 16 Terrain Scan Density 10 Armor Coverage 150 Evasion (%) 55 Recoil Reduction 4 Item Schematics ----------------- None Robot Schematics ------------------ None Fabricated ------------ Nothing Repaired ---------- Hrd. Light Armor Plating | 57% | -9/Storage Alien Tech Used ----------------- None Achievements -------------- None Challenges ------------ None Game ------ Seed EnergyBiocellGravjet Manual? 0 Play Time 00:19:14 Cumulative 10.2 hours Start 2025.07.28 @ 00:42:15 End 2025.07.28 @ 01:03:34 Sessions 1 Manual Loads 0 Difficulty Rogue Special Mode None Game No. 18 Rogue 9 Adventurer 9 Explorer 0 Win Type - Total 0 Types 0/0/0/0/0/0/0/0/0/0 Lore% 9 Gallery% 18 Achievement% 16 Wizard Run 0 Options --------- Layout 1 ASCII 0 Keyboard 0 Movement Numpad Keybinds 0 Fullscreen 1 Font 24/Smallcaps Map View 50x35 Zoom Use 0% Tactical HUD 0 Map Filters NONE Filters NONE Steam 1 RUN: bfe2ada2-97e5-45e5-ae78-0c1289c1e20e